[Event "Slovakian ECo-C Extraliga 2024-25"]
[Site "Slovakia"]
[Date "2024.11.24"]
[Round "2.4"]
[White "?"]
[Black "Rigo, Zsolt"]
[Result "0-1"]
[Annotator "TA"]
[ECO "B41"]
[WhiteElo "2036"]
[BlackElo "2403"]
[PlyCount "40"]
[EventDate "2024.09.12"]
[EventType "team-tourn"]
[EventCountry "SVK"]
[SourceTitle "playchess.com"]
[Source "ChessBase"]
[SourceQuality "1"]
[TimeControl "5400+30"]

{[%evp 12,40,36,29,50,20,22,-45,-39,-41,-40,-50,-60,-73,-70,-72,-58,-110,-112,-167,-175,-297,-299,-501,-497,-474,-474,-29994,-29995,-29996,-29997]} 1. e4 {[%emt 0:00:02]} c5 {[%emt 0:00:20]} 2. Nf3 {[%emt 0:00:05]} e6 {[%emt 0:01:22]} 3. d4 {[%emt 0:00:07]} cxd4 {[%emt 0:00:07]} 4. Nxd4 {[%emt 0:00:03]} a6 {[%emt 0:00:08]} 5. c4 {[%emt 0:04:06]} Nf6 {[%emt 0:01:10]} 6. Nc3 {[%emt 0:01:45]} Qc7 {[%emt 0:01:21]} 7. Qe2 {[%emt 0:25:32]} d6 {[%emt 0:08:49]} 8. Bg5 {[%emt 0:17:26]} Be7 {[%emt 0:13:40]} 9. f4 {[%emt 0:08:24]} (9. g3 $11) 9... h6 $15 {[%emt 0:04:25]} 10. Bxf6 {[%emt 0:01:30]} Bxf6 {[%emt 0:00:11]} 11. O-O-O {[%emt 0:00:57]} O-O {[%emt 0:06:08]} (11... Nc6 $5 12. Nxc6 Bxc3 $15 (12... bxc6 13. Qd2 $15)) 12. Kb1 {[%emt 0:03:26]} Nc6 {[%emt 0:01:07]} 13. Nxc6 {[%emt 0:02:22][%cal Oe4e5] and e5! should not be overlooked} bxc6 {[%emt 0:00:23]} (13... Bxc3 $5 14. Nd4 Bxd4 15. Rxd4 e5 16. fxe5 dxe5 $17) 14. Qe3 {[%emt 0:02:49]} (14. Qc2 $15) 14... Rb8 $17 {[%emt 0:04:03]} 15. Re1 {[%emt 0:02:53]} (15. Rd2 $17) 15... Rd8 {[%emt 0:15:34] ...Qa5 is the strong threat.} 16. h4 {[%emt 0:02:39] [#]} (16. Qd2 {is a better defense.}) 16... d5 $1 $19 {[%emt 0:07:27]} 17. e5 $2 {[%emt 0:12:19]} (17. Qc1) 17... d4 {[%emt 0:00:27]} 18. Qg3 {[%emt 0:00:03]} dxc3 {[%emt 0:00:55]} 19. exf6 {[%emt 0:00:04]} (19. Qxc3 $19 Be7 20. c5) 19... Rxb2+ {[%emt 0:00:11]} 20. Kc1 {[%emt 0:00:43] [#]} Rb1+ $3 {[%emt 0:00:52][%mdl 512]} 0-1

[Event "Slovakian ECo-C Extraliga 2024-25"]
[Site "Slovakia"]
[Date "2024.11.24"]
[Round "2.5"]
[White "Hujbert, Florian"]
[Black "Mrva, Martin"]
[Result "0-1"]
[Annotator "TA"]
[ECO "A05"]
[WhiteElo "2423"]
[BlackElo "2384"]
[PlyCount "120"]
[EventDate "2024.09.12"]
[EventType "team-tourn"]
[EventCountry "SVK"]
[SourceTitle "playchess.com"]
[Source "ChessBase"]
[SourceQuality "1"]
[TimeControl "5400+30"]

{[%evp 35,120,98,154,93,150,132,127,138,138,95,98,80,297,298,398,403,370,359,426,230,231,233,213,58,46,75,60,61,136,129,293,205,208,100,72,0,0,0,0,0,0,0,0,0,0,0,0,0,0,0,0,0,0,0,0,0,0,0,0,0,0,0,0,-343,-45,-44,-44,-44,-14,-1462,-1360,-1433,-789,-1392,-1008,-2707,-1972,-29982,-29983,-29983,-29984,-29988,-29982,-29982,-29983,-29992,-29992]} 1. Nf3 {[%emt 0:00:08]} Nf6 {[%emt 0:00:26]} 2. g3 {[%emt 0:00:14]} c5 {[%emt 0:06:23]} 3. Bg2 {[%emt 0:01:05]} d5 {[%emt 0:23:42]} 4. O-O {[%emt 0:00:54]} a6 {[%emt 0:08:18]} 5. d3 {[%emt 0:00:52]} Nc6 {[%emt 0:03:59]} 6. Bf4 {[%emt 0:06:07]} h6 {[%emt 0:06:55]} 7. Ne5 {[%emt 0:05:24]} Bd7 {[%emt 0:15:33]} 8. c4 {[%emt 0:10:16]} Nxe5 {[%emt 0:05:28]} 9. Bxe5 {[%emt 0:00:37]} Ng4 {[%emt 0:03:32]} 10. Bf4 {[%emt 0:06:59]} g5 {[%emt 0:03:19]} 11. Bd2 {[%emt 0:09:58]} d4 {[%emt 0:00:14]} 12. Bxb7 {[%emt 0:08:01]} Rb8 {[%emt 0:00:06]} 13. Bg2 {[%emt 0:00:29]} Qc7 {[%emt 0:03:47]} 14. Qe1 {[%emt 0:08:57]} Bc6 {[%emt 0:03:24]} 15. Ba5 {[%emt 0:14:40]} Qb7 {[%emt 0:00:37]} 16. Bxc6+ {[%emt 0:00:07]} Qxc6 {[%emt 0:00:04]} 17. Nd2 {[%emt 0:02:10]} h5 {[%emt 0:02:47]} 18. Nf3 {[%emt 0:04:00]} f6 {[%emt 0:05:26] [#]} (18... Qc8 $142) 19. b4 {[%emt 0:03:22]} (19. Rb1 $142 $1) 19... e5 {[%emt 0:02:40]} (19... h4 $142) 20. bxc5 {[%emt 0:01:45]} Bxc5 {[%emt 0:00:38]} 21. Rb1 {[%emt 0:00:49]} Kf7 {[%emt 0:00:06]} 22. Rxb8 {[%emt 0:02:46]} Rxb8 {[%emt 0:00:05]} 23. Qd2 {[%emt 0:00:40]} Kg6 $2 {[%emt 0:01:50]} (23... Ba3 $16) 24. h3 $18 {[%emt 0:02:05]} Qb7 {[%emt 0:02:34]} 25. hxg4 {[%emt 0:03:45]} hxg4 {[%emt 0:00:02]} 26. Nh2 {[%emt 0:00:31]} Qh7 {[%emt 0:00:14]} 27. f3 {[%emt 0:01:38]} (27. Nxg4 Qh3 28. e4 dxe3 (28... Qxg4 29. Kg2 $11) 29. fxe3 (29. Nxe3 $2 Rh8 30. f3 Bxe3+ 31. Qxe3 Qxg3#) 29... Qxg4 $15) (27. e4 $142) 27... Qh3 $18 {[%emt 0:00:31] [#]} 28. Qe1 $1 {[%emt 0:01:01]} (28. fxg4 e4 29. Qe1 (29. dxe4 $2 Qxg3+ 30. Kh1 Rh8 $19) 29... e3 $15) 28... gxf3 {[%emt 0:00:17]} 29. Qf2 $2 {[%emt 0:01:48]} ({Inferior is} 29. exf3 Rb2 30. Rf2 (30. Bd2 Bb4 $11) 30... Qxg3+ 31. Kf1 Qh3+ 32. Kg1 Qg3+ 33. Kf1 Qh3+ 34. Kg1 Qg3+ $11) (29. Nxf3 Rh8 30. Kf2 g4 $15) ({White must play} 29. Rxf3 $18 {Strongly threatening g4.} e4 30. Qf1 (30. dxe4 d3+ 31. e3 Rb2 $18) 30... Qxf1+ 31. Rxf1) 29... e4 $1 $14 {[%emt 0:00:13]} 30. Nxf3 $1 {[%emt 0:02:04]} (30. dxe4 {gets mated.} d3 31. exf3 Qxg3+ (31... Bxf2+ $2 32. Rxf2 Qxg3+ 33. Rg2 $19) 32. Kh1 Bxf2) 30... exf3 {[%emt 0:00:23]} 31. Qxf3 {[%emt 0:00:03]} Be7 {[%emt 0:01:30]} (31... Qe6 $14) 32. Bc7 $16 {[%emt 0:01:44]} Rc8 $2 {[%emt 0:00:08]} (32... Rh8 $16 33. Qe4+ Kf7) 33. Bb6 {[%emt 0:00:55]} Rh8 {[%emt 0:01:07]} 34. Qg2 {[%emt 0:00:09]} (34. Bxd4 $2 Qh2#) (34. Rf2 $18 {and White stays clearly on top.}) 34... Qg4 $16 {[%emt 0:00:04]} 35. Rf3 {[%emt 0:00:55]} ({Better is} 35. c5 $16) 35... Rb8 {[%emt 0:00:15]} 36. c5 {[%emt 0:00:38]} Rc8 {[%emt 0:00:58]} 37. Qf2 {[%emt 0:00:10]} f5 {[%emt 0:00:11]} 38. Qh2 {[%emt 0:01:05]} Bf6 {[%emt 0:00:26]} 39. a4 {[%emt 0:00:16]} a5 {[%emt 0:00:17]} 40. Qg2 {[%emt 0:00:00]} Be5 $1 {[%emt 0:00:00]} 41. Kf1 {[%emt 0:00:00]} Qh5 {[%emt 0:00:00]} 42. Rf2 {[%emt 0:00:00]} g4 {[%emt 0:00:00]} 43. Qd5 {[%emt 0:00:00]} Re8 {[%emt 0:00:00]} 44. Qc6+ {[%emt 0:00:00]} Kg5 {[%emt 0:00:00]} 45. Bxa5 {[%emt 0:00:00]} Bxg3 {[%emt 0:00:00]} 46. Bd2+ {[%emt 0:00:00]} f4 {[%emt 0:00:00]} 47. Qd5+ {[%emt 0:00:25]} Kg6 {[%emt 0:00:00]} 48. Qxh5+ {[%emt 0:01:24]} Kxh5 {[%emt 0:00:00]} 49. Rg2 $2 {[%emt 0:01:52][%mdl 8192]} (49. Bxf4 $1 $11 {and White has nothing to worry.} Bxf2 50. Kxf2) 49... Rc8 $2 {[%emt 0:00:00]} (49... Rb8 $19 {( -> ...Rb1+)} 50. Rxg3 fxg3) 50. Rg1 $1 $15 {[%emt 0:00:21]} Rxc5 {[%emt 0:00:00]} 51. Rh1+ $1 {[%emt 0:00:28]} Kg6 {[%emt 0:00:00]} 52. Kg2 $2 {[%emt 0:00:14][%mdl 8192]} (52. Rh8 $11) 52... Rc2 $19 {[%emt 0:00:19]} 53. Rd1 {[%emt 0:00:05]} Ra2 {[%emt 0:01:07]} 54. a5 {[%emt 0:00:04]} Kf5 {[%emt 0:01:06]} 55. Kf1 {[%emt 0:00:20]} f3 {[%emt 0:00:17]} 56. exf3 {[%emt 0:01:04]} gxf3 {[%emt 0:00:08]} 57. Kg1 {[%emt 0:00:52]} Kg4 {[%emt 0:00:22]} 58. Kh1 {[%emt 0:00:26]} Kh4 {[%emt 0:02:07]} 59. Kg1 {[%emt 0:00:26]} Kh3 {[%emt 0:00:12]} 60. Kh1 {[%emt 0:00:31]} Bf2 {[%emt 0:00:16]} 0-1

[Event "Slovakian ECo-C Extraliga 2024-25"]
[Site "Slovakia"]
[Date "2024.11.24"]
[Round "2.5"]
[White "Jurcik, Marian"]
[Black "Istona, Martin"]
[Result "1-0"]
[Annotator "RC"]
[ECO "B31"]
[WhiteElo "2408"]
[BlackElo "2223"]
[PlyCount "63"]
[EventDate "2024.09.12"]
[EventType "team-tourn"]
[EventCountry "SVK"]
[SourceTitle "playchess.com"]
[Source "ChessBase"]
[SourceQuality "1"]
[TimeControl "5400+30"]

1. e4 {[%emt 0:00:08]} c5 {[%emt 0:00:18]} 2. Nf3 {[%emt 0:00:14]} Nc6 {[%emt 0:01:31]} 3. Bb5 {[%emt 0:00:29]} g6 {[%emt 0:01:56]} 4. Bxc6 {[%emt 0:01:06]} dxc6 {[%emt 0:03:18]} 5. d3 {[%emt 0:01:02]} Bg7 {[%emt 0:00:40]} 6. a4 {[%emt 0:07:49]} Nf6 {[%emt 0:06:42]} 7. h3 {[%emt 0:06:18]} Nd7 {[%emt 0:02:27]} 8. Nbd2 {[%emt 0:04:23]} e5 {[%emt 0:06:43]} 9. Nc4 {[%emt 0:07:40]} Qe7 {[%emt 0:00:49]} 10. O-O {[%emt 0:09:34]} O-O {[%emt 0:22:04]} 11. Bg5 {[%emt 0:20:09]} f6 {[%emt 0:00:41]} 12. Be3 {[%emt 0:00:03]} Rd8 {[%emt 0:03:59]} 13. Nfd2 {[%emt 0:00:23]} Nf8 {[%emt 0:16:25]} 14. f4 {[%emt 0:01:12]} exf4 {[%emt 0:00:57]} 15. Bxf4 {[%emt 0:00:40]} f5 {[%emt 0:13:23]} 16. Bg3 {[%emt 0:06:00]} Be6 {[%emt 0:06:43]} 17. exf5 {[%emt 0:04:16]} Bxf5 {[%emt 0:00:14]} 18. Qf3 {[%emt 0:01:38]} Rd7 {[%emt 0:06:59]} 19. Rae1 {[%emt 0:01:02]} Qd8 {[%emt 0:00:12]} 20. Ne4 {[%emt 0:06:52]} Ne6 {[%emt 0:01:53]} 21. Ned6 {[%emt 0:05:00]} Nd4 {[%emt 0:01:09]} 22. Qf2 {[%emt 0:00:28]} b5 {[%emt 0:01:25]} 23. Re8+ {[%emt 0:04:28]} Qxe8 {[%emt 0:00:19]} 24. Nxe8 {[%emt 0:00:05]} Rxe8 {[%emt 0:00:41]} 25. Ne3 {[%emt 0:02:40]} Rde7 {[%emt 0:00:28]} 26. Bf4 {[%emt 0:01:05]} Be6 {[%emt 0:00:59]} 27. c3 {[%emt 0:01:00]} Rf7 {[%emt 0:00:32]} 28. cxd4 {[%emt 0:03:05]} Bxd4 {[%emt 0:00:06]} 29. Qg3 {[%emt 0:01:24]} Ref8 {[%emt 0:00:33]} 30. Kh2 {[%emt 0:02:46]} Bxe3 {[%emt 0:00:51]} 31. Qxe3 {[%emt 0:00:11]} Bd5 {[%emt 0:00:12]} 32. Rf2 {[%emt 0:00:30]} 1-0

[Event "Slovakian ECo-C Extraliga 2024-25"]
[Site "Slovakia"]
[Date "2024.11.24"]
[Round "2.5"]
[White "Jablonicky, Martin"]
[Black "Havlicek, Libor"]
[Result "1-0"]
[Annotator "TA"]
[ECO "B90"]
[WhiteElo "2400"]
[BlackElo "2288"]
[PlyCount "51"]
[EventDate "2024.09.12"]
[EventType "team-tourn"]
[EventCountry "SVK"]
[SourceTitle "playchess.com"]
[Source "ChessBase"]
[SourceQuality "1"]
[TimeControl "5400+30"]

{[%evp 17,51,4,36,1,141,129,201,205,204,193,287,291,289,110,255,286,276,285,254,250,258,256,252,197,249,252,691,691,664,307,749,504,424,297,297,290]} 1. e4 {[%emt 0:00:03]} c5 {[%emt 0:00:31]} 2. Nf3 {[%emt 0:00:05]} d6 {[%emt 0:01:17]} 3. d4 {[%emt 0:00:11]} cxd4 {[%emt 0:00:19]} 4. Nxd4 {[%emt 0:00:06]} Nf6 {[%emt 0:00:13]} 5. Nc3 {[%emt 0:00:05]} a6 {[%emt 0:00:12]} 6. Bc4 {[%emt 0:00:15]} e6 {[%emt 0:00:38]} 7. Bb3 {[%emt 0:00:15]} Qc7 {[%emt 0:00:49]} 8. Be3 {[%emt 0:10:18]} Nc6 {[%emt 0:01:13]} 9. Qe2 {[%emt 0:00:27]} b5 {[%emt 0:08:52]} 10. O-O-O {[%emt 0:14:02]} (10. Nxc6 $5 Qxc6 11. Bd4 $14) 10... Ne5 {[%emt 0:10:59]} (10... b4 $11 11. Na4 Na5) 11. f4 $16 {[%emt 0:04:14]} Nc6 {[%emt 0:01:47]} (11... Ned7 $16) 12. Nxc6 $18 {[%emt 0:23:07]} Qxc6 {[%emt 0:00:16]} 13. Bd4 {[%emt 0:01:24] Bxf6 would now be deadly.} Be7 {[%emt 0:03:17] [#]} (13... Bb7 {is a better defense.} 14. Bxf6 gxf6) 14. Nd5 $1 {[%emt 0:13:30]} Bb7 {[%emt 0:11:12]} (14... exd5 15. Bxf6) 15. Bxf6 $2 {[%emt 0:17:49]} (15. Nxe7 $18 {is the precise move to win.} Kxe7 16. e5 dxe5 17. Qxe5) 15... Bxf6 {[%emt 0:15:11]} (15... gxf6 $16 16. Nxe7 Kxe7) 16. Nxf6+ {[%emt 0:00:32]} gxf6 {[%emt 0:00:07] [#]} 17. Bd5 $1 {[%emt 0:00:17][%mdl 512]} Qc7 {[%emt 0:02:02]} (17... Qd7 18. Bxb7) 18. Bxb7 {[%emt 0:00:11]} Qxb7 {[%emt 0:00:05]} 19. Rxd6 {[%emt 0:00:07]} O-O {[%emt 0:13:16]} 20. Qg4+ {[%emt 0:00:36]} Kh8 {[%emt 0:00:10]} 21. Qh4 {[%emt 0:00:08]} Kg7 $2 {[%emt 0:02:18]} (21... Qxe4 22. Qxf6+ Kg8) 22. Rd3 {[%emt 0:00:08] Intending Rg3+ and mate.} Rg8 {[%emt 0:00:12]} 23. Re1 {[%emt 0:05:24]} (23. e5 $142 h6 24. f5 (24. Qxf6+ Kh7 $18) (24. Rh3 Kf8 $18)) 23... h6 $2 {[%emt 0:01:14]} (23... Rad8 24. Rg3+ Kf8 25. Qxf6 Qb6) 24. Rg3+ {[%emt 0:00:55]} Kf8 {[%emt 0:01:55]} 25. Rxg8+ {[%emt 0:00:18]} ({Much less strong is} 25. Qxf6 Rxg3 26. hxg3 Qc6 27. Qxh6+ Ke8 $18) 25... Kxg8 {[%emt 0:00:02]} 26. Qxh6 {[%emt 0:00:14]} 1-0

[Event "Slovakian ECo-C Extraliga 2024-25"]
[Site "Slovakia"]
[Date "2024.11.24"]
[Round "2.5"]
[White "Pasti, Aron"]
[Black "Meszaros, Casey Ryan"]
[Result "1-0"]
[Annotator "TA"]
[ECO "A05"]
[WhiteElo "2355"]
[BlackElo "1952"]
[PlyCount "59"]
[EventDate "2024.09.12"]
[EventType "team-tourn"]
[EventCountry "SVK"]
[SourceTitle "playchess.com"]
[Source "ChessBase"]
[SourceQuality "1"]
[TimeControl "5400+30"]

{[%evp 14,59,25,-10,0,0,0,-5,41,33,49,-17,95,91,82,84,101,93,103,107,103,83,149,156,220,144,149,132,135,114,208,202,206,200,205,175,172,180,310,304,292,316,344,337,371,312,566,572]} 1. Nf3 {[%emt 0:00:11]} Nf6 {[%emt 0:01:09]} 2. g3 {[%emt 0:00:51]} g6 {[%emt 0:01:39]} 3. Bg2 {[%emt 0:00:10]} Bg7 {[%emt 0:00:06]} 4. O-O {[%emt 0:00:03]} O-O {[%emt 0:00:11]} 5. c4 {[%emt 0:00:12]} c5 {[%emt 0:01:33]} 6. Nc3 {[%emt 0:01:40]} d5 {[%emt 0:11:10]} 7. cxd5 {[%emt 0:01:16]} Nxd5 {[%emt 0:00:21]} 8. Qb3 {[%emt 0:00:05]} Nb4 {[%emt 0:06:27]} 9. d3 {[%emt 0:02:58]} Be6 {[%emt 0:01:09]} 10. Qd1 {[%emt 0:00:02]} h6 {[%emt 0:05:26] Against Ng5} (10... N8c6 $11 {is more appropriate.}) 11. Be3 $14 {[%emt 0:00:23]} N8a6 {[%emt 0:01:26]} 12. Ne4 {[%emt 0:18:40]} ({White should try} 12. Qd2 $14) 12... Rc8 {[%emt 0:01:43] [#]} (12... b6 $11 {keeps the balance.}) 13. Qd2 $1 $16 {[%emt 0:00:10]} c4 {[%emt 0:13:13][%cal Rc4d3]} 14. a3 {[%emt 0:08:10]} Nc6 {[%emt 0:27:21]} 15. Bxh6 {[%emt 0:01:07] White is more active.} cxd3 {[%emt 0:00:27]} 16. Bxg7 {[%emt 0:03:15]} Kxg7 {[%emt 0:02:13]} 17. Rfd1 {[%emt 0:02:20][%cal Bf1d1,Bd1d3,Bd3e3][%mdl 32]} Na5 {[%emt 0:06:59] [#]} ({Black should play} 17... Qb6) 18. b4 $1 {[%emt 0:02:05]} (18. Qxd3 Qxd3 19. Rxd3 Rfd8 $16) (18. exd3 Nb3 19. Qg5 f6 $17) 18... Rc2 {[%emt 0:03:46]} (18... Nc4 $16 19. Qa2 (19. Qxd3 Nb2 $16) 19... Nb6) 19. Qxd3 {[%emt 0:04:37]} Qxd3 {[%emt 0:00:21]} 20. Rxd3 {[%emt 0:01:59]} ({Much less strong is} 20. exd3 Nb3 $16) 20... Nb3 {[%emt 0:02:54]} 21. Re1 $36 {[%emt 0:00:09][%mdl 2048] Black is under strong pressure.} Nc1 {[%emt 0:04:29]} (21... Rfc8 $16) 22. Re3 {[%emt 0:02:36]} Rd8 {[%emt 0:00:56] Dodges Nd4} 23. Neg5 {[%emt 0:00:19]} Nc7 {[%emt 0:01:47]} 24. Nxe6+ {[%emt 0:01:03]} Nxe6 {[%emt 0:00:09]} 25. Bh3 {[%emt 0:00:12]} Kf6 {[%emt 0:02:26]} (25... Nd4) 26. Bxe6 $18 {[%emt 0:00:35]} fxe6 {[%emt 0:00:01]} 27. h4 {[%emt 0:00:02]} Rd5 {[%emt 0:00:57]} 28. Ng5 {[%emt 0:01:13]} e5 {[%emt 0:01:29]} 29. Kf1 {[%emt 0:00:58]} a5 $2 {[%emt 0:01:26] [#]} (29... Kg7 {was necessary.} 30. Rf3 Kg8) 30. Rc3 $1 {[%emt 0:00:29][%mdl 512]} 1-0

[Event "Slovakian ECo-C Extraliga 2024-25"]
[Site "Slovakia"]
[Date "2024.11.24"]
[Round "2.5"]
[White "Zambor, Norbert"]
[Black "Motuz, Karol"]
[Result "*"]
[Annotator "RC"]
[ECO "B22"]
[WhiteElo "2227"]
[BlackElo "2305"]
[PlyCount "24"]
[EventDate "2024.09.12"]
[EventType "team-tourn"]
[EventCountry "SVK"]
[SourceTitle "playchess.com"]
[Source "ChessBase"]
[SourceQuality "1"]
[TimeControl "5400+30"]

1. e4 {[%emt 0:00:03]} c5 {[%emt 0:00:18]} 2. c3 {[%emt 0:00:05]} Nf6 {[%emt 0:00:37]} 3. e5 {[%emt 0:00:07]} Nd5 {[%emt 0:00:04]} 4. Nf3 {[%emt 0:00:09]} Nc6 {[%emt 0:00:58]} 5. Bc4 {[%emt 0:00:32]} Nb6 {[%emt 0:00:26]} 6. Bb3 {[%emt 0:00:07]} c4 {[%emt 0:00:55]} 7. Bc2 {[%emt 0:00:06]} d6 {[%emt 0:00:55]} 8. exd6 {[%emt 0:00:37]} Qxd6 {[%emt 0:00:09]} 9. O-O {[%emt 0:00:17]} Bg4 {[%emt 0:00:53]} 10. h3 {[%emt 0:00:38]} Bh5 {[%emt 0:00:47]} 11. Re1 {[%emt 0:00:24]} O-O-O {[%emt 0:05:38]} 12. b3 {[%emt 0:00:57]} Ne5 {[%emt 0:17:51]} *

[Event "Slovakian ECo-C Extraliga 2024-25"]
[Site "Slovakia"]
[Date "2024.11.24"]
[Round "2.5"]
[White "Terbe, Julianna"]
[Black "Hrabusa, Matej"]
[Result "*"]
[Annotator "RC"]
[ECO "E48"]
[WhiteElo "2225"]
[BlackElo "2338"]
[PlyCount "21"]
[EventDate "2024.09.12"]
[EventType "team-tourn"]
[EventCountry "SVK"]
[SourceTitle "playchess.com"]
[Source "ChessBase"]
[SourceQuality "1"]
[TimeControl "5400+30"]

1. d4 {[%emt 0:00:03]} Nf6 {[%emt 0:00:09]} 2. c4 {[%emt 0:00:07]} e6 {[%emt 0:00:05]} 3. Nc3 {[%emt 0:00:06]} Bb4 {[%emt 0:00:05]} 4. e3 {[%emt 0:00:11]} O-O {[%emt 0:00:24]} 5. Bd3 {[%emt 0:00:08]} d5 {[%emt 0:00:42]} 6. cxd5 {[%emt 0:00:09]} exd5 {[%emt 0:01:09]} 7. a3 {[%emt 0:00:07]} Bd6 {[%emt 0:01:00]} 8. Qc2 {[%emt 0:00:15]} c6 {[%emt 0:03:51]} 9. Nge2 {[%emt 0:00:37]} Re8 {[%emt 0:02:08]} 10. Bd2 {[%emt 0:09:27]} Qe7 {[%emt 0:13:32]} 11. f3 {[%emt 0:02:35]} *

[Event "Slovakian ECo-C Extraliga 2024-25"]
[Site "Slovakia"]
[Date "2024.11.24"]
[Round "2.5"]
[White "Terbe, Zsuzsanna"]
[Black "Hrabusa, Matej"]
[Result "0-1"]
[Annotator "TA"]
[ECO "E48"]
[WhiteElo "2160"]
[BlackElo "2338"]
[PlyCount "110"]
[EventDate "2024.09.12"]
[EventType "team-tourn"]
[EventCountry "SVK"]
[SourceTitle "playchess.com"]
[Source "ChessBase"]
[SourceQuality "1"]
[TimeControl "5400+30"]

{[%evp 18,110,-15,-31,24,11,8,-21,-28,-17,-18,-35,-23,-32,-29,-42,-39,-25,-41,-58,-30,-83,-36,-49,-43,-91,-79,-84,-86,-151,-151,-151,-107,-151,-137,-151,-151,-151,-28,-196,-95,-302,-240,-241,-224,-221,-211,-215,-205,-226,-204,-366,-350,-1008,-602,-587,-601,-549,-566,-489,-189,-448,-433,-417,-288,-414,-408,-394,-367,-594,-581,-614,-592,-649,-647,-635,-616,-1549,-1508,-2131,-1126,-1090,-1071,-1148,-1117,-1172,-1137,-1746,-1734,-1263,-1854,-1689,-1695,-1422,-1410]} 1. d4 {[%emt 0:00:03]} Nf6 {[%emt 0:00:09]} 2. c4 {[%emt 0:00:07]} e6 {[%emt 0:00:05]} 3. Nc3 {[%emt 0:00:06]} Bb4 {[%emt 0:00:05]} 4. e3 {[%emt 0:00:11]} O-O {[%emt 0:00:24]} 5. Bd3 {[%emt 0:00:08]} d5 {[%emt 0:00:42]} 6. cxd5 {[%emt 0:00:09]} exd5 {[%emt 0:01:09]} 7. a3 {[%emt 0:00:07]} Bd6 {[%emt 0:01:00]} 8. Qc2 {[%emt 0:00:15]} c6 {[%emt 0:03:51]} 9. Nge2 {[%emt 0:00:37]} Re8 {[%emt 0:02:08]} 10. Bd2 {[%emt 0:09:27]} Qe7 {[%emt 0:13:32]} (10... b6 $15) 11. f3 {[%emt 0:02:35]} c5 $1 {[%emt 0:11:09]} 12. Nb5 {[%emt 0:08:56]} c4 {[%emt 0:06:33]} 13. Bf5 {[%emt 0:00:27]} Nc6 {[%emt 0:00:52]} 14. Nxd6 {[%emt 0:11:37]} Qxd6 {[%emt 0:00:09]} 15. O-O {[%emt 0:04:49]} b5 {[%emt 0:06:18]} 16. Ng3 {[%emt 0:12:28]} g6 {[%emt 0:03:29]} 17. Bxc8 {[%emt 0:00:12]} Raxc8 {[%emt 0:00:09]} 18. b4 {[%emt 0:03:26]} h5 {[%emt 0:05:59]} 19. Rfe1 {[%emt 0:01:37]} (19. Ne2 $11 {keeps the balance.}) 19... Re6 {[%emt 0:05:10]} (19... h4 $17 20. Ne2 Qd8) 20. Bc3 $15 {[%emt 0:03:45]} Rce8 {[%emt 0:03:28]} 21. Qd2 {[%emt 0:03:11]} (21. Qf2 $15 {was preferable.}) 21... h4 $17 {[%emt 0:01:47]} 22. Nf1 {[%emt 0:02:13]} Ne7 {[%emt 0:01:08]} 23. Re2 {[%emt 0:02:22]} (23. Qf2 $142) 23... Nf5 $17 {[%emt 0:01:57]} 24. Rae1 {[%emt 0:00:25]} Qe7 {[%emt 0:02:29]} 25. Bb2 {[%emt 0:03:01]} Qb7 {[%emt 0:02:54]} 26. Qc3 {[%emt 0:05:00]} Nh5 {[%emt 0:07:45]} 27. Qd2 {[%emt 0:03:13]} Qe7 {[%emt 0:05:57]} (27... a6 $17 28. Bc3 R8e7) 28. Kf2 $2 {[%emt 0:11:34]} (28. e4 $11) 28... Nd6 {[%emt 0:04:44]} (28... g5 $19 {is more deadly. and ...Qf6 would now be decisive} 29. g3 hxg3+ 30. hxg3 Qf6) 29. Bc1 $2 {[%emt 0:06:18]} (29. e4 $17 {was forced.}) 29... f5 {[%emt 0:01:16]} 30. g3 {[%emt 0:01:07]} Nf6 {[%emt 0:01:47]} 31. Kg1 {[%emt 0:00:16]} Qh7 {[%emt 0:00:33]} 32. Rg2 {[%emt 0:04:10]} Kf7 {[%emt 0:00:40]} 33. Qc2 {[%emt 0:01:10]} Rh8 {[%emt 0:00:51]} 34. Nd2 $2 {[%emt 0:00:30]} (34. Qd1) 34... hxg3 $19 {[%emt 0:03:11]} 35. hxg3 $2 {[%emt 0:00:04]} (35. Nf1 gxh2+ 36. Rxh2) 35... Nde4 {[%emt 0:01:42]} 36. Nxe4 {[%emt 0:01:03]} dxe4 {[%emt 0:00:52]} 37. Qe2 {[%emt 0:01:45]} exf3 {[%emt 0:01:08]} 38. Qxf3 {[%emt 0:00:01]} Ng4 $2 {[%emt 0:01:13]} (38... Ne4 {[%csl Gh8][%cal Rh7h1]} 39. Kf1 Ng5) 39. Qb7+ $2 {[%emt 0:00:06]} (39. Ra2 {was called for.}) 39... Re7 $19 {[%emt 0:00:08]} 40. Qd5+ {[%emt 0:00:02]} Kg7 {[%emt 0:00:29]} 41. Rge2 {[%emt 0:00:00]} (41. Rc2 $142) 41... Nf6 $19 {[%emt 0:00:00]} 42. Qg2 {[%emt 0:00:00]} Ne4 {[%emt 0:00:00]} 43. Bb2 $2 {[%emt 0:00:00]} (43. d5 c3 44. Rc2) 43... Qh5 $19 {[%emt 0:00:00]} 44. Rc2 {[%emt 0:00:00]} Kg8 {[%emt 0:00:00]} 45. d5 {[%emt 0:00:00]} Rh6 {[%emt 0:00:00]} 46. g4 {[%emt 0:00:00]} Qh4 {[%emt 0:00:00]} 47. Rec1 {[%emt 0:00:00]} Qg5 {[%emt 0:00:00]} 48. Bd4 {[%emt 0:00:00]} Rh4 {[%emt 0:00:00]} (48... Qxg4 $2 49. Qxg4 fxg4 50. Rh2 Rxh2 51. Kxh2 $19) (48... fxg4 $2 49. d6 Nxd6 50. Rf1 $17) 49. gxf5 {[%emt 0:00:00]} Rg4 {[%emt 0:00:00]} (49... gxf5 $2 50. Bf6 $18 (50. Qxg5+ Nxg5 51. Rg2 Rg4 $11)) 50. fxg6 {[%emt 0:00:00]} Qxg6 {[%emt 0:00:00]} 51. Rf1 {[%emt 0:00:37]} Rf7 {[%emt 0:02:25]} ({Stronger than} 51... Rxg2+ 52. Rxg2 Ng5 53. Bf6 $15) 52. Qxg4 {[%emt 0:02:48]} Qxg4+ {[%emt 0:00:07]} 53. Rg2 {[%emt 0:00:04]} Ng3 {[%emt 0:01:36]} 54. Rff2 {[%emt 0:03:59]} Qd1+ {[%emt 0:02:04]} 55. Kh2 {[%emt 0:00:04]} Rxf2 {[%emt 0:00:07]} 0-1